[Event "GAMMA Reykjavik Open 2019"]
[Site "Reykjavik"]
[Date "2019.04.11"]
[Round "2.9"]
[White "Yoo, Christopher Woojin"]
[Black "Tari, Aryan"]
[Result "0-1"]
[ECO "B33"]
[WhiteElo "2414"]
[BlackElo "2615"]
[Annotator "RC"]
[PlyCount "130"]
[EventDate "2019.04.04"]
[EventType "swiss"]
[EventCountry "ISL"]
[SourceTitle "playchess.com"]
[Source "ChessBase"]
[SourceQuality "1"]
[TimeControl "40/5400+30:1800+30"]

1. e4 {[%emt 0:00:33]} c5 {[%emt 0:00:00]} 2. Nf3 {[%emt 0:00:07]} Nc6 {[%emt 0:00:08]} 3. d4 {[%emt 0:00:13]} cxd4 {[%emt 0:00:09]} 4. Nxd4 {[%emt 0:00:08]} Nf6 {[%emt 0:00:07]} 5. Nc3 {[%emt 0:00:09]} e5 {[%emt 0:00:06]} 6. Ndb5 {[%emt 0:00:08]} d6 {[%emt 0:00:12]} 7. Bg5 {[%emt 0:00:37]} a6 {[%emt 0:00:11]} 8. Bxf6 {[%emt 0:01:05]} gxf6 {[%emt 0:00:09]} 9. Na3 {[%emt 0:00:04]} b5 {[%emt 0:00:45]} 10. Nd5 {[%emt 0:00:28]} f5 {[%emt 0:01:18]} 11. exf5 {[%emt 0:06:22]} Bxf5 {[%emt 0:02:18]} 12. c3 {[%emt 0:09:11]} Bg7 {[%emt 0:02:33]} 13. Nc2 {[%emt 0:04:27]} O-O {[%emt 0:03:15]} 14. a4 {[%emt 0:08:52]} Ne7 {[%emt 0:21:54]} 15. Nce3 {[%emt 0:08:15]} Be6 {[%emt 0:04:24]} 16. Nxe7+ {[%emt 0:05:15]} Qxe7 {[%emt 0:00:56]} 17. axb5 {[%emt 0:00:50]} axb5 {[%emt 0:11:14]} 18. Rxa8 {[%emt 0:04:18]} Rxa8 {[%emt 0:00:03]} 19. Bxb5 {[%emt 0:04:16]} Qb7 {[%emt 0:03:32]} 20. c4 {[%emt 0:04:46]} d5 {[%emt 0:02:07]} 21. cxd5 {[%emt 0:03:01]} Qxb5 {[%emt 0:03:39]} 22. dxe6 {[%emt 0:03:19]} fxe6 {[%emt 0:01:50]} 23. Qe2 {[%emt 0:13:29]} Ra1+ {[%emt 0:03:24]} 24. Nd1 {[%emt 0:00:05]} Qb4+ {[%emt 0:01:02]} 25. Qd2 {[%emt 0:00:17]} Qe4+ {[%emt 0:01:45]} 26. Qe2 {[%emt 0:04:37]} Qxg2 {[%emt 0:13:07]} 27. Rf1 {[%emt 0:01:15]} e4 {[%emt 0:06:38]} 28. Qh5 {[%emt 0:05:19]} h6 {[%emt 0:06:02]} 29. Ke2 {[%emt 0:02:20]} Rb1 {[%emt 0:00:31]} 30. Qe8+ {[%emt 0:03:01]} Kh7 {[%emt 0:00:20]} 31. Qh5 {[%emt 0:00:07]} e3 {[%emt 0:05:07]} 32. Qf3 {[%emt 0:03:14]} Qxf3+ {[%emt 0:01:53]} 33. Kxf3 {[%emt 0:00:06]} exf2 {[%emt 0:00:13]} 34. Kxf2 {[%emt 0:00:18]} Bxb2 {[%emt 0:00:36]} 35. Ke2 {[%emt 0:01:19]} Bd4 {[%emt 0:01:45]} 36. Rf3 {[%emt 0:01:42]} e5 {[%emt 0:01:33]} 37. h3 {[%emt 0:03:24]} Kg6 {[%emt 0:00:29]} 38. Rg3+ {[%emt 0:00:34]} Kf6 {[%emt 0:01:21]} 39. Ne3 {[%emt 0:00:51]} Rb2+ {[%emt 0:00:13]} 40. Kf1 {[%emt 0:00:00]} h5 {[%emt 0:00:00]} 41. Rf3+ {[%emt 0:04:32]} Kg5 {[%emt 0:04:27]} 42. Rf5+ {[%emt 0:01:50]} Kg6 {[%emt 0:01:23]} 43. Rf3 {[%emt 0:00:10]} Kg5 {[%emt 0:06:54]} 44. Rf5+ {[%emt 0:00:44]} Kg6 {[%emt 0:00:12]} 45. Rf3 {[%emt 0:00:56]} e4 {[%emt 0:01:25]} 46. Rg3+ {[%emt 0:00:28]} Kf6 {[%emt 0:04:59]} 47. Nd5+ {[%emt 0:05:28]} Kf5 {[%emt 0:01:03]} 48. h4 {[%emt 0:04:31]} Rf2+ {[%emt 0:03:49]} 49. Ke1 {[%emt 0:00:55]} Ke5 {[%emt 0:00:12]} 50. Nb4 {[%emt 0:04:17]} Rh2 {[%emt 0:02:20]} 51. Rg5+ {[%emt 0:03:00]} Ke6 {[%emt 0:00:12]} 52. Rg6+ {[%emt 0:01:57]} Bf6 {[%emt 0:01:11]} 53. Kf1 {[%emt 0:01:03]} Rxh4 {[%emt 0:01:05]} 54. Nc2 {[%emt 0:00:37]} Kf5 {[%emt 0:01:31]} 55. Rg2 {[%emt 0:00:31]} Rh3 {[%emt 0:00:17]} 56. Rf2+ {[%emt 0:01:11]} Ke5 {[%emt 0:00:06]} 57. Rd2 {[%emt 0:01:03]} Rc3 {[%emt 0:00:32]} 58. Rf2 {[%emt 0:01:04]} h4 {[%emt 0:00:18]} 59. Kg2 {[%emt 0:00:26]} Bg5 {[%emt 0:00:06]} 60. Re2 {[%emt 0:00:35]} h3+ {[%emt 0:00:16]} 61. Kh2 {[%emt 0:00:36]} Bf4+ {[%emt 0:00:06]} 62. Kh1 {[%emt 0:00:06]} Bg3 {[%emt 0:02:12]} 63. Kg1 {[%emt 0:01:48]} Rb3 {[%emt 0:00:22]} 64. Ne3 {[%emt 0:00:58]} Rb1+ {[%emt 0:00:08]} 65. Nf1 {[%emt 0:00:05]} h2+ {[%emt 0:00:11]} 0-1

[Event "GAMMA Reykjavik Open 2019"]
[Site "Reykjavik"]
[Date "2019.04.09"]
[Round "2.17"]
[White "Cornette, Matthieu"]
[Black "L'Ami, Alina"]
[Result "1-0"]
[ECO "E90"]
[WhiteElo "2556"]
[BlackElo "2290"]
[Annotator "ChessBase"]
[PlyCount "151"]
[EventDate "2019.04.04"]
[EventType "swiss"]
[EventCountry "ISL"]
[SourceTitle "playchess.com"]
[Source "ChessBase"]
[SourceQuality "1"]
[TimeControl "40/5400+30:1800+30"]

1. d4 {[%emt 0:00:00]} Nf6 {[%emt 0:03:40]} 2. c4 {[%emt 0:00:04]} g6 {[%emt 0:00:05]} 3. Nc3 {[%emt 0:00:15]} Bg7 {[%emt 0:00:15]} 4. e4 {[%emt 0:00:14]} d6 {[%emt 0:00:18]} 5. h3 {[%emt 0:00:10]} O-O {[%emt 0:01:02]} 6. Be3 {[%emt 0:00:06]} c5 {[%emt 0:07:28]} 7. Nf3 {[%emt 0:00:31]} Qa5 {[%emt 0:03:46]} 8. Bd3 {[%emt 0:01:34]} Nfd7 {[%emt 0:04:36]} 9. O-O {[%emt 0:02:18]} Nc6 {[%emt 0:02:47]} 10. Be2 {[%emt 0:02:14]} cxd4 {[%emt 0:15:04]} 11. Nxd4 {[%emt 0:00:58]} Nxd4 {[%emt 0:03:53]} 12. Bxd4 {[%emt 0:00:15]} Bxd4 {[%emt 0:01:25]} 13. Qxd4 {[%emt 0:00:08]} Qc5 {[%emt 0:04:05]} 14. Qd2 {[%emt 0:02:09]} Nf6 {[%emt 0:05:03]} 15. Nd5 {[%emt 0:09:27]} Nxd5 {[%emt 0:08:02]} 16. exd5 {[%emt 0:00:31]} e5 {[%emt 0:06:46]} 17. dxe6 {[%emt 0:06:20]} Bxe6 {[%emt 0:00:19]} 18. Rac1 {[%emt 0:00:28]} Rac8 {[%emt 0:04:47]} 19. Rfd1 {[%emt 0:03:43]} Rfd8 {[%emt 0:01:05]} 20. b3 {[%emt 0:01:04]} Qe5 {[%emt 0:03:40]} 21. Rc3 {[%emt 0:14:54]} d5 {[%emt 0:02:48]} 22. Re3 {[%emt 0:04:13]} Qb8 {[%emt 0:08:31]} 23. Rd3 {[%emt 0:00:40]} Re8 {[%emt 0:02:06]} 24. cxd5 {[%emt 0:03:53]} Bf5 {[%emt 0:00:02]} 25. Bg4 {[%emt 0:03:26]} Bxd3 {[%emt 0:00:52]} 26. Bxc8 {[%emt 0:00:07]} Be4 {[%emt 0:02:30]} 27. Bg4 {[%emt 0:04:33]} h5 {[%emt 0:02:21]} 28. Be2 {[%emt 0:06:45]} Bxd5 {[%emt 0:02:55]} 29. Bxh5 {[%emt 0:00:10]} Bc6 {[%emt 0:00:05]} 30. Be2 {[%emt 0:02:38]} Qe5 {[%emt 0:00:20]} 31. Bf1 {[%emt 0:00:51]} Re7 {[%emt 0:01:24]} 32. Qb4 {[%emt 0:04:37]} Re8 {[%emt 0:01:19]} 33. a4 {[%emt 0:03:34]} a6 {[%emt 0:00:09]} 34. Qd2 {[%emt 0:05:59]} Re7 {[%emt 0:00:52]} 35. Qc1 {[%emt 0:01:48]} Re6 {[%emt 0:01:25]} 36. Bc4 {[%emt 0:01:24]} Qe4 {[%emt 0:01:16]} 37. f3 {[%emt 0:06:59]} Qe3+ {[%emt 0:00:01]} 38. Qxe3 {[%emt 0:04:19]} Rxe3 {[%emt 0:00:02]} 39. Rd8+ {[%emt 0:00:25]} Kg7 {[%emt 0:00:36]} 40. Rc8 {[%emt 0:00:00]} f5 {[%emt 0:00:00]} 41. Rc7+ {[%emt 0:08:01]} Kh6 {[%emt 0:08:15]} 42. h4 {[%emt 0:10:40]} g5 {[%emt 0:04:54]} 43. Kf2 {[%emt 0:00:51]} Rc3 {[%emt 0:03:44]} 44. hxg5+ {[%emt 0:08:52]} Kxg5 {[%emt 0:00:03]} 45. a5 {[%emt 0:02:50]} f4 {[%emt 0:07:37]} 46. Bd5 {[%emt 0:02:54]} Rc2+ {[%emt 0:01:49]} 47. Kg1 {[%emt 0:00:23]} Rc5 {[%emt 0:05:27]} 48. Bxc6 {[%emt 0:00:07]} bxc6 {[%emt 0:00:04]} 49. b4 {[%emt 0:00:07]} Rc4 {[%emt 0:00:10]} 50. Kh2 {[%emt 0:00:50]} Kf5 {[%emt 0:00:25]} 51. Rb7 {[%emt 0:02:09]} Ke5 {[%emt 0:00:34]} 52. Rb6 {[%emt 0:00:44]} Kd6 {[%emt 0:02:00]} 53. Kh3 {[%emt 0:00:03]} Kd5 {[%emt 0:00:57]} 54. Kg4 {[%emt 0:00:21]} Rd4 {[%emt 0:00:22]} 55. Kf5 {[%emt 0:00:39]} Kd6 {[%emt 0:00:31]} 56. Kf6 {[%emt 0:02:09]} Rc4 {[%emt 0:00:17]} 57. Kf7 {[%emt 0:00:26]} Kd7 {[%emt 0:00:45]} 58. Kf6 {[%emt 0:02:03]} Kd6 {[%emt 0:00:33]} 59. Kg5 {[%emt 0:00:21]} Rd4 {[%emt 0:01:15]} 60. Kg4 {[%emt 0:00:16]} Rc4 {[%emt 0:00:18]} 61. g3 {[%emt 0:00:19]} fxg3+ {[%emt 0:00:36]} 62. Kxg3 {[%emt 0:00:02]} Kd5 {[%emt 0:00:28]} 63. Kf2 {[%emt 0:01:01]} Kd6 {[%emt 0:00:30]} 64. Ke3 {[%emt 0:00:22]} Kd5 {[%emt 0:00:11]} 65. Kf2 {[%emt 0:00:21]} Kd6 {[%emt 0:00:28]} 66. Kg3 {[%emt 0:00:02]} Kd5 {[%emt 0:00:15]} 67. f4 {[%emt 0:00:13]} Kd6 {[%emt 0:00:26]} 68. Kg4 {[%emt 0:00:53]} Kd7 {[%emt 0:00:37]} 69. Kg5 {[%emt 0:00:34]} c5 {[%emt 0:00:24]} 70. f5 {[%emt 0:01:10]} Rxb4 {[%emt 0:01:18]} 71. f6 {[%emt 0:00:12]} Rd4 {[%emt 0:01:12]} 72. Rxa6 {[%emt 0:01:15]} c4 {[%emt 0:00:34]} 73. Ra7+ {[%emt 0:00:19]} Ke8 {[%emt 0:00:15]} 74. Rc7 {[%emt 0:00:20]} Rd5+ {[%emt 0:01:29]} 75. Kg6 {[%emt 0:00:04]} Rxa5 {[%emt 0:00:11]} 76. f7+ {[%emt 0:00:12]} 1-0

[Event "GAMMA Reykjavik Open 2019"]
[Site "Reykjavik"]
[Date "2019.04.09"]
[Round "2.19"]
[White "Gukesh D"]
[Black "Ortega Ruiz, Jose Miguel"]
[Result "1-0"]
[ECO "D78"]
[WhiteElo "2536"]
[BlackElo "2281"]
[Annotator "ChessBase"]
[PlyCount "127"]
[EventDate "2019.04.04"]
[EventType "swiss"]
[EventCountry "ISL"]
[SourceTitle "playchess.com"]
[Source "ChessBase"]
[SourceQuality "1"]
[TimeControl "40/5400+30:1800+30"]

1. Nf3 {[%emt 0:00:00]} d5 {[%emt 0:07:52]} 2. g3 {[%emt 0:00:00]} g6 {[%emt 0:00:10]} 3. Bg2 {[%emt 0:00:09]} Bg7 {[%emt 0:00:05]} 4. d4 {[%emt 0:00:08]} Nf6 {[%emt 0:01:05]} 5. O-O {[%emt 0:00:08]} c6 {[%emt 0:01:37]} 6. b3 {[%emt 0:01:55]} O-O {[%emt 0:01:31]} 7. Bb2 {[%emt 0:00:26]} Bf5 {[%emt 0:00:28]} 8. c4 {[%emt 0:00:57]} Nbd7 {[%emt 0:00:30]} 9. Nbd2 {[%emt 0:03:14]} Ne4 {[%emt 0:14:46]} 10. Re1 {[%emt 0:17:07]} b5 {[%emt 0:27:57]} 11. cxd5 {[%emt 0:03:33]} cxd5 {[%emt 0:00:05]} 12. Nh4 {[%emt 0:00:20]} Rc8 {[%emt 0:06:45]} 13. Nxf5 {[%emt 0:11:02]} gxf5 {[%emt 0:00:04]} 14. Nxe4 {[%emt 0:02:59]} fxe4 {[%emt 0:00:33]} 15. Qd2 {[%emt 0:00:41]} Qb6 {[%emt 0:03:24]} 16. e3 {[%emt 0:02:32]} a5 {[%emt 0:05:05]} 17. Rac1 {[%emt 0:03:08]} e6 {[%emt 0:00:07]} 18. Bf1 {[%emt 0:01:49]} b4 {[%emt 0:00:48]} 19. Rc2 {[%emt 0:02:49]} Qb7 {[%emt 0:01:18]} 20. Rec1 {[%emt 0:01:08]} Rfd8 {[%emt 0:01:21]} 21. Qe2 {[%emt 0:03:09]} Rxc2 {[%emt 0:00:30]} 22. Qxc2 {[%emt 0:07:03]} Ra8 {[%emt 0:01:51]} 23. Be2 {[%emt 0:06:10]} Bf8 {[%emt 0:00:46]} 24. h4 {[%emt 0:05:29]} Nb6 {[%emt 0:02:22]} 25. Qc6 {[%emt 0:09:32]} Qxc6 {[%emt 0:00:27]} 26. Rxc6 {[%emt 0:00:07]} Nc8 {[%emt 0:00:05]} 27. Bb5 {[%emt 0:01:47]} Nd6 {[%emt 0:00:17]} 28. Ba6 {[%emt 0:00:44]} Kg7 {[%emt 0:02:05]} 29. g4 {[%emt 0:01:27]} Kf6 {[%emt 0:00:44]} 30. a4 {[%emt 0:02:10]} Ke7 {[%emt 0:00:56]} 31. Be2 {[%emt 0:00:15]} Kd7 {[%emt 0:00:48]} 32. Rc5 {[%emt 0:00:31]} Be7 {[%emt 0:05:44]} 33. h5 {[%emt 0:00:36]} Nb7 {[%emt 0:02:42]} 34. Rc2 {[%emt 0:01:20]} Nd6 {[%emt 0:00:57]} 35. Rc5 {[%emt 0:01:50]} Nb7 {[%emt 0:00:04]} 36. Rc1 {[%emt 0:00:48]} Nd6 {[%emt 0:00:07]} 37. Kg2 {[%emt 0:01:28]} Rc8 {[%emt 0:00:10]} 38. Rc5 {[%emt 0:00:38]} Ra8 {[%emt 0:05:40]} 39. f4 {[%emt 0:02:43]} exf3+ {[%emt 0:00:18]} 40. Kxf3 {[%emt 0:00:00]} Ne4 {[%emt 0:00:00]} 41. Bb5+ {[%emt 0:04:41]} Kd8 {[%emt 0:02:59]} 42. Rc6 {[%emt 0:01:14]} Rc8 {[%emt 0:00:45]} 43. Rxc8+ {[%emt 0:01:32]} Kxc8 {[%emt 0:00:04]} 44. Bd3 {[%emt 0:00:34]} Ng5+ {[%emt 0:00:29]} 45. Kf4 {[%emt 0:02:17]} Nh3+ {[%emt 0:00:41]} 46. Ke5 {[%emt 0:10:17]} Ng5 {[%emt 0:02:15]} 47. e4 {[%emt 0:02:51]} f6+ {[%emt 0:04:31]} 48. Kf4 {[%emt 0:00:05]} Bd6+ {[%emt 0:00:21]} 49. e5 {[%emt 0:06:10]} Be7 {[%emt 0:00:08]} 50. h6 {[%emt 0:03:33]} Kd7 {[%emt 0:01:53]} 51. Bc1 {[%emt 0:02:06]} Ke8 {[%emt 0:02:08]} 52. Kg3 {[%emt 0:00:22]} Kf7 {[%emt 0:00:16]} 53. exf6 {[%emt 0:04:02]} Bxf6 {[%emt 0:01:11]} 54. Bf4 {[%emt 0:00:07]} Bd8 {[%emt 0:00:22]} 55. Kh4 {[%emt 0:04:07]} Nf3+ {[%emt 0:04:36]} 56. Kh5 {[%emt 0:00:13]} Kg8 {[%emt 0:00:04]} 57. g5 {[%emt 0:00:30]} Bxg5 {[%emt 0:03:00]} 58. Bxg5 {[%emt 0:00:08]} Nxd4 {[%emt 0:00:03]} 59. Be3 {[%emt 0:02:01]} Nxb3 {[%emt 0:00:01]} 60. Kg5 {[%emt 0:00:24]} e5 {[%emt 0:02:02]} 61. Kf6 {[%emt 0:00:38]} e4 {[%emt 0:00:39]} 62. Bb5 {[%emt 0:00:21]} Kf8 {[%emt 0:00:20]} 63. Bc6 {[%emt 0:00:26]} d4 {[%emt 0:00:07]} 64. Bf4 {[%emt 0:00:04]} 1-0

[Event "GAMMA Reykjavik Open 2019"]
[Site "Reykjavik"]
[Date "2019.04.09"]
[Round "2.20"]
[White "Briem, Stephan"]
[Black "Brunello, Sabino"]
[Result "0-1"]
[ECO "E46"]
[WhiteElo "2138"]
[BlackElo "2534"]
[Annotator "ChessBase"]
[PlyCount "102"]
[EventDate "2019.04.04"]
[EventType "swiss"]
[EventCountry "ISL"]
[SourceTitle "playchess.com"]
[Source "ChessBase"]
[SourceQuality "1"]
[TimeControl "40/5400+30:1800+30"]

1. d4 {[%emt 0:00:00]} Nf6 {[%emt 0:01:12]} 2. c4 {[%emt 0:00:11]} e6 {[%emt 0:00:27]} 3. Nc3 {[%emt 0:00:57]} Bb4 {[%emt 0:00:07]} 4. e3 {[%emt 0:01:01]} O-O {[%emt 0:00:13]} 5. Nge2 {[%emt 0:00:59]} Re8 {[%emt 0:07:43]} 6. a3 {[%emt 0:01:19]} Bf8 {[%emt 0:00:02]} 7. Ng3 {[%emt 0:01:13]} d5 {[%emt 0:00:31]} 8. Be2 {[%emt 0:00:29]} b6 {[%emt 0:01:30]} 9. O-O {[%emt 0:05:21]} Bb7 {[%emt 0:01:27]} 10. b4 {[%emt 0:09:04]} Nbd7 {[%emt 0:07:56]} 11. Bb2 {[%emt 0:05:53]} c5 {[%emt 0:05:45]} 12. Qb3 {[%emt 0:11:56]} cxd4 {[%emt 0:05:39]} 13. exd4 {[%emt 0:00:52]} dxc4 {[%emt 0:00:43]} 14. Bxc4 {[%emt 0:01:43]} Rc8 {[%emt 0:00:14]} 15. Rac1 {[%emt 0:04:46]} Qc7 {[%emt 0:08:36]} 16. Bd3 {[%emt 0:09:16]} Qf4 {[%emt 0:03:24]} 17. Nce2 {[%emt 0:03:23]} Qb8 {[%emt 0:01:19]} 18. Rxc8 {[%emt 0:06:04]} Rxc8 {[%emt 0:01:01]} 19. Rc1 {[%emt 0:02:00]} Rd8 {[%emt 0:01:25]} 20. Nc3 {[%emt 0:04:46]} Bd6 {[%emt 0:02:35]} 21. Qc2 {[%emt 0:04:05]} h5 {[%emt 0:11:13]} 22. Nce4 {[%emt 0:10:19]} Bf4 {[%emt 0:23:21]} 23. Re1 {[%emt 0:03:03]} h4 {[%emt 0:01:48]} 24. Nf1 {[%emt 0:00:27]} Rc8 {[%emt 0:01:42]} 25. Qe2 {[%emt 0:02:21]} Bxe4 {[%emt 0:03:22]} 26. Bxe4 {[%emt 0:00:46]} Nxe4 {[%emt 0:00:04]} 27. Qxe4 {[%emt 0:00:22]} Nf6 {[%emt 0:00:30]} 28. Qd3 {[%emt 0:00:50]} Nd5 {[%emt 0:00:53]} 29. g3 {[%emt 0:01:26]} hxg3 {[%emt 0:00:13]} 30. hxg3 {[%emt 0:00:05]} Bg5 {[%emt 0:00:09]} 31. Nh2 {[%emt 0:02:06]} a5 {[%emt 0:02:47]} 32. Nf3 {[%emt 0:02:35]} Bf6 {[%emt 0:00:14]} 33. b5 {[%emt 0:00:27]} Qc7 {[%emt 0:03:07]} 34. Qd2 {[%emt 0:03:28]} Qd7 {[%emt 0:01:33]} 35. Qd3 {[%emt 0:01:21]} Ne7 {[%emt 0:00:21]} 36. Rc1 {[%emt 0:00:55]} Rxc1+ {[%emt 0:00:46]} 37. Bxc1 {[%emt 0:00:02]} Nf5 {[%emt 0:00:14]} 38. Be3 {[%emt 0:01:32]} Qd5 {[%emt 0:00:11]} 39. Nd2 {[%emt 0:01:24]} Bxd4 {[%emt 0:02:49]} 40. Bxd4 {[%emt 0:00:00]} Nxd4 {[%emt 0:00:00]} 41. a4 {[%emt 0:02:03]} Kf8 {[%emt 0:00:21]} 42. f3 {[%emt 0:04:37]} Nf5 {[%emt 0:12:05]} 43. Qc3 {[%emt 0:12:12]} Nxg3 {[%emt 0:00:36]} 44. Kg2 {[%emt 0:05:56]} Ne2 {[%emt 0:05:59]} 45. Qc8+ {[%emt 0:03:41]} Ke7 {[%emt 0:00:01]} 46. Ne4 {[%emt 0:00:32]} f5 {[%emt 0:02:17]} 47. Ng5 {[%emt 0:02:24]} Nf4+ {[%emt 0:01:09]} 48. Kg3 {[%emt 0:01:00]} Qd6 {[%emt 0:02:58]} 49. Qb7+ {[%emt 0:02:08]} Kf6 {[%emt 0:00:09]} 50. Nf7 {[%emt 0:00:56]} Qd4 {[%emt 0:00:19]} 51. Qc7 {[%emt 0:00:40]} Qg1+ {[%emt 0:00:20]} 0-1

[Event "GAMMA Reykjavik Open 2019"]
[Site "Reykjavik"]
[Date "2019.04.09"]
[Round "2.21"]
[White "Sadzikowski, Daniel"]
[Black "Abrahams, Daniel"]
[Result "1-0"]
[ECO "E11"]
[WhiteElo "2523"]
[BlackElo "2143"]
[Annotator "ChessBase"]
[PlyCount "79"]
[EventDate "2019.04.04"]
[EventType "swiss"]
[EventCountry "ISL"]
[SourceTitle "playchess.com"]
[Source "ChessBase"]
[SourceQuality "1"]
[TimeControl "40/5400+30:1800+30"]

1. d4 {[%emt 0:00:00]} Nf6 {[%emt 0:00:00]} 2. c4 {[%emt 0:00:00]} e6 {[%emt 0:00:00]} 3. Nf3 {[%emt 0:00:00]} Bb4+ {[%emt 0:00:00]} 4. Nbd2 {[%emt 0:00:06]} O-O {[%emt 0:00:26]} 5. a3 {[%emt 0:00:08]} Be7 {[%emt 0:00:21]} 6. e4 {[%emt 0:00:12]} d6 {[%emt 0:00:13]} 7. Bd3 {[%emt 0:00:32]} Nbd7 {[%emt 0:00:33]} 8. O-O {[%emt 0:01:26]} e5 {[%emt 0:00:07]} 9. b4 {[%emt 0:03:29]} exd4 {[%emt 0:01:11]} 10. Nxd4 {[%emt 0:00:09]} Re8 {[%emt 0:00:03]} 11. Bb2 {[%emt 0:01:40]} Bf8 {[%emt 0:00:14]} 12. Qc2 {[%emt 0:05:43]} a5 {[%emt 0:01:52]} 13. N4b3 {[%emt 0:05:11]} axb4 {[%emt 0:00:34]} 14. axb4 {[%emt 0:00:05]} Rxa1 {[%emt 0:00:11]} 15. Rxa1 {[%emt 0:01:49]} Ne5 {[%emt 0:02:28]} 16. Bf1 {[%emt 0:01:15]} Ng6 {[%emt 0:00:18]} 17. Nd4 {[%emt 0:09:33]} c6 {[%emt 0:01:46]} 18. Bc3 {[%emt 0:08:57]} Bd7 {[%emt 0:05:10]} 19. f3 {[%emt 0:01:31]} Qc7 {[%emt 0:12:12]} 20. Kh1 {[%emt 0:08:08]} Rc8 {[%emt 0:03:32]} 21. Nf5 {[%emt 0:13:48]} Ne8 {[%emt 0:05:04]} 22. Ne3 {[%emt 0:05:01]} Be7 {[%emt 0:00:51]} 23. Qb2 {[%emt 0:01:23]} Bf6 {[%emt 0:00:43]} 24. Bxf6 {[%emt 0:03:28]} Nxf6 {[%emt 0:00:02]} 25. Nb3 {[%emt 0:01:55]} Qb6 {[%emt 0:01:20]} 26. c5 {[%emt 0:01:34]} Qc7 {[%emt 0:01:14]} 27. Nc4 {[%emt 0:00:45]} d5 {[%emt 0:01:01]} 28. Nd6 {[%emt 0:02:30]} Rb8 {[%emt 0:00:27]} 29. e5 {[%emt 0:00:48]} Ne8 {[%emt 0:00:21]} 30. Bd3 {[%emt 0:01:45]} b6 {[%emt 0:01:02]} 31. Bxg6 {[%emt 0:01:07]} hxg6 {[%emt 0:00:10]} 32. Qc3 {[%emt 0:01:51]} bxc5 {[%emt 0:00:18]} 33. bxc5 {[%emt 0:00:52]} Qd8 {[%emt 0:00:43]} 34. Nd4 {[%emt 0:01:47]} Nc7 {[%emt 0:00:42]} 35. f4 {[%emt 0:09:49]} Ne6 {[%emt 0:02:08]} 36. Nxe6 {[%emt 0:01:49]} Bxe6 {[%emt 0:00:01]} 37. h3 {[%emt 0:00:15]} Qh4 {[%emt 0:00:33]} 38. Rf1 {[%emt 0:00:13]} Bf5 {[%emt 0:01:04]} 39. Kh2 {[%emt 0:01:28]} Rb1 {[%emt 0:00:35]} 40. Nxf5 {[%emt 0:00:00]} 1-0

[Event "GAMMA Reykjavik Open 2019"]
[Site "Reykjavik"]
[Date "2019.04.09"]
[Round "2.23"]
[White "Salomon, Johan"]
[Black "Jonsson, Gauti Pall"]
[Result "1-0"]
[ECO "E11"]
[WhiteElo "2495"]
[BlackElo "2027"]
[Annotator "ChessBase"]
[PlyCount "87"]
[EventDate "2019.04.04"]
[EventType "swiss"]
[EventCountry "ISL"]
[SourceTitle "playchess.com"]
[Source "ChessBase"]
[SourceQuality "1"]
[TimeControl "40/5400+30:1800+30"]

1. d4 {[%emt 0:00:00]} Nf6 {[%emt 0:00:29]} 2. c4 {[%emt 0:00:00]} e6 {[%emt 0:00:27]} 3. Nf3 {[%emt 0:00:00]} Bb4+ {[%emt 0:00:41]} 4. Nbd2 {[%emt 0:00:00]} d6 {[%emt 0:00:51]} 5. e3 {[%emt 0:00:00]} Nbd7 {[%emt 0:01:08]} 6. Be2 {[%emt 0:00:28]} b6 {[%emt 0:05:00]} 7. O-O {[%emt 0:00:59]} Bxd2 {[%emt 0:00:40]} 8. Nxd2 {[%emt 0:00:57]} Bb7 {[%emt 0:00:33]} 9. Nb1 {[%emt 0:09:07]} e5 {[%emt 0:01:20]} 10. f3 {[%emt 0:07:15]} exd4 {[%emt 0:07:45]} 11. Qxd4 {[%emt 0:01:03]} d5 {[%emt 0:01:35]} 12. cxd5 {[%emt 0:00:38]} Bxd5 {[%emt 0:00:32]} 13. e4 {[%emt 0:00:37]} c5 {[%emt 0:03:50]} 14. Qa4 {[%emt 0:20:05]} Bb7 {[%emt 0:06:13]} 15. Bf4 {[%emt 0:11:46]} O-O {[%emt 0:09:21]} 16. Rd1 {[%emt 0:00:54]} a6 {[%emt 0:04:43]} 17. Qb3 {[%emt 0:00:06]} Qc8 {[%emt 0:09:55]} 18. Bd6 {[%emt 0:02:11]} b5 {[%emt 0:11:56]} 19. Bxf8 {[%emt 0:00:12]} Nxf8 {[%emt 0:00:07]} 20. a4 {[%emt 0:01:54]} Ne6 {[%emt 0:03:37]} 21. Qe3 {[%emt 0:11:40]} Nd4 {[%emt 0:01:21]} 22. Na3 {[%emt 0:00:40]} Qe6 {[%emt 0:03:32]} 23. axb5 {[%emt 0:06:17]} Nd5 {[%emt 0:00:51]} 24. Qf2 {[%emt 0:01:08]} Nf4 {[%emt 0:04:35]} 25. Bf1 {[%emt 0:00:24]} Qg6 {[%emt 0:08:54]} 26. Kh1 {[%emt 0:01:12]} h5 {[%emt 0:02:15]} 27. bxa6 {[%emt 0:00:47]} Rxa6 {[%emt 0:03:25]} 28. Bxa6 {[%emt 0:03:49]} Bxa6 {[%emt 0:00:06]} 29. Nc2 {[%emt 0:01:04]} Nxc2 {[%emt 0:03:49]} 30. Rxa6 {[%emt 0:01:09]} Qxa6 {[%emt 0:01:20]} 31. Qxc2 {[%emt 0:00:07]} h4 {[%emt 0:00:44]} 32. e5 {[%emt 0:02:21]} g6 {[%emt 0:02:18]} 33. Qe4 {[%emt 0:00:23]} g5 {[%emt 0:01:55]} 34. Qf5 {[%emt 0:00:46]} Ne6 {[%emt 0:00:14]} 35. Qd3 {[%emt 0:02:10]} Qa2 {[%emt 0:00:18]} 36. Qb5 {[%emt 0:02:41]} Kg7 {[%emt 0:00:26]} 37. h3 {[%emt 0:00:39]} Qa8 {[%emt 0:00:54]} 38. Qc4 {[%emt 0:01:07]} Qa5 {[%emt 0:00:04]} 39. Kh2 {[%emt 0:01:01]} Nd4 {[%emt 0:01:10]} 40. b4 {[%emt 0:00:00]} Qa4 {[%emt 0:00:00]} 41. Qc1 {[%emt 0:14:56]} Kg6 {[%emt 0:03:41]} 42. bxc5 {[%emt 0:00:49]} Nc6 {[%emt 0:02:18]} 43. Rd6+ {[%emt 0:00:51]} Kh5 {[%emt 0:00:33]} 44. Qb1 {[%emt 0:01:52]} 1-0

[Event "GAMMA Reykjavik Open 2019"]
[Site "Reykjavik"]
[Date "2019.04.09"]
[Round "2.24"]
[White "Nilssen, Ellen Fredericia"]
[Black "Libiszewski, Fabien"]
[Result "0-1"]
[ECO "E73"]
[WhiteElo "2048"]
[BlackElo "2488"]
[Annotator "ChessBase"]
[PlyCount "52"]
[EventDate "2019.04.04"]
[EventType "swiss"]
[EventCountry "ISL"]
[SourceTitle "playchess.com"]
[Source "ChessBase"]
[SourceQuality "1"]
[TimeControl "40/5400+30:1800+30"]

1. d4 {[%emt 0:00:00]} Nf6 {[%emt 0:00:31]} 2. c4 {[%emt 0:00:00]} g6 {[%emt 0:00:37]} 3. Nc3 {[%emt 0:00:04]} Bg7 {[%emt 0:00:04]} 4. e4 {[%emt 0:00:07]} d6 {[%emt 0:00:11]} 5. Be2 {[%emt 0:00:06]} O-O {[%emt 0:00:26]} 6. Bg5 {[%emt 0:00:11]} Na6 {[%emt 0:00:15]} 7. Qd2 {[%emt 0:00:08]} e5 {[%emt 0:00:33]} 8. d5 {[%emt 0:01:41]} Qe8 {[%emt 0:00:57]} 9. Bd1 {[%emt 0:00:08]} Nh5 {[%emt 0:00:56]} 10. Bxh5 {[%emt 0:12:53]} gxh5 {[%emt 0:01:14]} 11. Nge2 {[%emt 0:01:26]} f6 {[%emt 0:00:25]} 12. Bh6 {[%emt 0:08:18]} Bxh6 {[%emt 0:00:21]} 13. Qxh6 {[%emt 0:00:03]} Qg6 {[%emt 0:00:05]} 14. Qxg6+ {[%emt 0:01:19]} hxg6 {[%emt 0:00:05]} 15. h4 {[%emt 0:01:01]} f5 {[%emt 0:13:12]} 16. f3 {[%emt 0:10:29]} Nc5 {[%emt 0:04:38]} 17. O-O {[%emt 0:06:03]} a5 {[%emt 0:04:04]} 18. b3 {[%emt 0:02:01]} Bd7 {[%emt 0:02:38]} 19. exf5 {[%emt 0:05:16]} gxf5 {[%emt 0:05:12]} 20. Ng3 {[%emt 0:00:55]} Kf7 {[%emt 0:08:20]} 21. Rad1 {[%emt 0:09:48]} Rg8 {[%emt 0:06:56]} 22. Nxh5 {[%emt 0:05:45]} Rg6 {[%emt 0:03:22]} 23. Kf2 {[%emt 0:02:11]} Rh8 {[%emt 0:00:53]} 24. Ng3 {[%emt 0:02:53]} Rhg8 {[%emt 0:01:10]} 25. Nge2 {[%emt 0:01:00]} Rxg2+ {[%emt 0:00:09]} 26. Ke3 {[%emt 0:00:19]} R8g3 {[%emt 0:11:34] Kd4 [%emt 00:06:47]} 0-1